fUSD/lending_fUSD_20250417
["ID","MTS","AMOUNT","RATE_DAILY","PERIOD"]
[358310518,1744921852777,-151.0,0.0007,120]
[358310519,1744921852788,-151.0,0.0007,120]
[358310520,1744921852798,-151.0,0.0007,120]
[358310521,1744921852808,-151.0,0.0007,120]
[358310522,1744921852817,-151.0,0.0007,120]
[358310523,1744921852827,-151.0,0.0007,120]
[358310524,1744921852836,-151.0,0.0007,120]
[358310525,1744921852845,-151.0,0.0007,120]
[358310526,1744921852854,-200.0,0.0007,70]
[358310527,1744921852864,-207.4,0.0007,70]
[358310528,1744921852873,-215.0738,0.0007,70]
[358310529,1744921852883,-223.0315306,0.0007,70]
[358310530,1744921852893,-231.28369723,0.0007,70]
[358310531,1744921852902,-239.84119403,0.0007,70]
[358310532,1744921852912,-248.71531821,0.0007,70]
[358310533,1744921852922,-257.91778498,0.0007,70]
[358310534,1744921852931,-267.46074303,0.0007,70]
[358310535,1744921852941,-277.35679052,0.0007,70]
[358310536,1744921852951,-287.61899177,0.0007,70]
[358310537,1744921852960,-298.26089446,0.0007,70]
[358310538,1744921852971,-309.29654756,0.0007,70]
[358310539,1744921852980,-320.74051982,0.0007,70]
[358310540,1744921852990,-332.60791905,0.0007,70]
[358310541,1744921853001,-344.91441206,0.0007,70]
[358310542,1744921853011,-357.6762453,0.0007,70]
[358310543,1744921853020,-600.0,0.0007,70]
[358310544,1744921853030,-999.999999,0.0007,120]
[358310545,1744921853040,-151.0,0.0007,120]
[358310546,1744921853049,-240.630462,0.0007,120]
[358310547,1744921853058,-151.0,0.0007,120]
[358310548,1744921853068,-151.0,0.0007,120]
[358310549,1744921853078,-150.0,0.0007,120]
[358310550,1744921853087,-151.0,0.0007,120]
[358310551,1744921853096,-150.0,0.0007,120]
[358310552,1744921853106,-150.0,0.0007,120]
[358310553,1744921853116,-150.0,0.0007,120]
[358310554,1744921853125,-150.0,0.0007,120]
[358310555,1744921853135,-150.0,0.0007,120]
[358310556,1744921853144,-151.0,0.0007,120]
[358310557,1744921853154,-150.0,0.0007,120]
[358310558,1744921853164,-150.0,0.0007,120]
[358310559,1744921853174,-151.0,0.0007,120]
[358310560,1744921853184,-227.06,0.00070005,120]
[358310561,1744921853194,-1541.2072278,0.00070006,6]
[358310562,1744921853203,-12565.9676834,0.00070006,6]
[358310563,1744921853212,-867.29936003,0.00070054,6]
[358310564,1744921853221,-151.0,0.00070054,120]
[358310565,1744921853230,-151.0,0.00070054,120]
[358310566,1744921853240,-4680.4619896,0.00070102,6]
[358310567,1744921853250,-392.45,0.00070411,30]
[358310568,1744921853259,-639.55609689,0.00070422,120]
[358310569,1744921853269,-200.0,0.00070521,15]
[358310570,1744921853280,-175.65,0.00070759,2]
[358310571,1744921853289,-1800.0,0.000709,25]
[358310572,1744921853300,-2000.0,0.00070922,14]
[358310573,1744921853310,-200.0,0.00070978,120]
[358310574,1744921853320,-349.81438163,0.00070989,120]
[358310575,1744921853330,-500.0,0.00070989,120]
[358310576,1744921853339,-151.0,0.0007099,120]
[358310577,1744921853348,-151.0,0.0007099,120]
[358310578,1744921853363,-151.0,0.0007099,120]
[358310579,1744921853375,-500.0,0.00070998,90]
[358310580,1744921853385,-500.0,0.00070998,90]
[358310581,1744921853394,-500.0,0.00070998,90]
[358310582,1744921853404,-500.0,0.00070998,90]
[358310583,1744921853414,-300.0,0.00070998,60]
[358310584,1744921853423,-500.0,0.00070998,90]
[358310585,1744921853432,-733.69524025,0.00070998,120]
[358310586,1744921853443,-300.0,0.00070998,60]
[358310587,1744921853453,-500.0,0.00070998,90]
[358310588,1744921853462,-500.0,0.00070998,90]
[358310589,1744921853472,-500.0,0.00070998,120]
[358310590,1744921853481,-500.0,0.00070998,120]
[358310591,1744921853491,-500.0,0.00070998,2]
[358310592,1744921853500,-500.0,0.00070998,120]
[358310593,1744921853509,-500.0,0.00070998,120]
[358310594,1744921853519,-500.0,0.00070998,120]
[358310595,1744921853528,-783.84,0.00070998,120]
[358310596,1744921853538,-655.03,0.00070998,2]
[358310597,1744921853547,-1131.18,0.00070998,120]
[358310598,1744921853556,-500.0,0.00070999,90]
[358310599,1744921853567,-500.0,0.00070999,90]
[358310600,1744921853658,-500.0,0.00070999,90]
[358310601,1744921853668,-500.0,0.00070999,90]
[358310602,1744921853678,-300.0,0.00070999,60]
[358310603,1744921853688,-500.0,0.00070999,90]
[358310604,1744921853697,-300.0,0.00070999,60]
[358310605,1744921853707,-500.0,0.00070999,90]
[358310606,1744921853716,-500.0,0.00070999,90]
[358310607,1744921853726,-500.0,0.00070999,120]
[358310608,1744921853735,-500.0,0.00070999,120]
[358310609,1744921853745,-252.18114062,0.00070999,120]
[358310610,1744921853754,-500.0,0.00070999,120]
[358310611,1744921853763,-500.0,0.00070999,120]
[358310612,1744921853773,-500.0,0.00070999,120]
[358310613,1744921853782,-322.18663544,0.00070999,120]
[358310614,1744921853792,-500.0,0.00070999,120]
[358310615,1744921853802,-500.0,0.00070999,120]
[358310616,1744921853811,-500.0,0.00070999,120]
[358310617,1744921853820,-179.70608109,0.00070999,120]
[358310618,1744921853830,-500.0,0.00070999,120]
[358310619,1744921853839,-500.0,0.00070999,120]
[358310620,1744921853849,-500.0,0.00070999,120]
[358310621,1744921853858,-500.0,0.00070999,120]
[358310622,1744921853867,-474.42348073,0.00070999,120]
[358310623,1744921853877,-500.0,0.00070999,120]
[358310624,1744921853887,-500.0,0.00070999,120]
[358310625,1744921853896,-500.0,0.00070999,120]
[358310626,1744921853905,-500.0,0.00070999,120]
[358310627,1744921853915,-502.97014974,0.00070999,120]
[358310628,1744921853924,-250.0,0.00070999,120]
[358310629,1744921853934,-500.0,0.00070999,7]
[358310630,1744921853943,-250.0,0.00070999,120]
[358310631,1744921853953,-500.0,0.00070999,7]
[358310632,1744921853963,-500.0,0.00070999,120]
[358310633,1744921853972,-500.0,0.00070999,120]
[358310634,1744921853982,-500.0,0.00070999,120]
[358310635,1744921853991,-522.0805343,0.00070999,120]
[358310636,1744921854001,-500.0,0.00070999,120]
[358310637,1744921854010,-500.0,0.00070999,120]
[358310638,1744921854020,-500.0,0.00070999,120]
[358310639,1744921854029,-501.46580161,0.00070999,120]
[358310640,1744921854039,-500.0,0.00070999,120]
[358310641,1744921854049,-500.0,0.00070999,120]
[358310642,1744921854058,-500.0,0.00070999,120]
[358310643,1744921854068,-500.0,0.00070999,120]
[358310644,1744921854078,-500.0,0.00070999,120]
[358310645,1744921854087,-500.0,0.00070999,120]
[358310646,1744921854097,-529.25691027,0.00070999,120]
[358310647,1744921854107,-500.0,0.00070999,120]
[358310648,1744921854116,-500.0,0.00070999,120]
[358310649,1744921854126,-500.0,0.00070999,120]
[358310650,1744921854135,-500.0,0.00070999,120]
[358310651,1744921854145,-500.0,0.00070999,120]
[358310652,1744921854155,-500.0,0.00070999,120]
[358310653,1744921854164,-500.0,0.00070999,120]
[358310654,1744921854174,-500.0,0.00070999,120]
[358310655,1744921854183,-151.0,0.00070999,120]
[358310656,1744921854193,-500.0,0.00070999,120]
[358310657,1744921854203,-500.0,0.00070999,120]
[358310658,1744921854212,-500.0,0.00070999,120]
[358310659,1744921854222,-580.79971684,0.00070999,120]
[358310660,1744921854231,-151.0,0.00070999,120]
[358310661,1744921854240,-1.1811075,0.00070999,120]
[358310662,1744921854431,-151.0,0.00058,120]
[358310663,1744921854441,-214.08514991,0.00068493,120]
[358310664,1744921854453,-285.91485009,0.00068493,120]
[358310665,1744921854464,-500.0,0.00068493,120]
[358310666,1744921854473,-500.0,0.00068493,120]
[358310667,1744921854483,-500.0,0.00068493,120]
[358310668,1744921854493,-151.0,0.00069779,120]
[358310669,1744921854503,-398.74974098,0.00070999,120]
[358310670,1744921854512,-523.35333491,0.00070999,120]
[358310671,1744921854522,-500.0,0.00070999,120]
[358310672,1744921854531,-624.77809883,0.00070999,120]
[358310673,1744921854540,-500.0,0.00070999,120]
[358310674,1744921854549,-500.0,0.00070999,120]
[358310675,1744921854559,-500.0,0.00070999,2]
[358310676,1744921854571,-506.92630829,0.00070999,120]
[358310677,1744921854580,-500.0,0.00070999,120]
[358310678,1744921854590,-500.0,0.00070999,120]
[358310679,1744921854599,-500.0,0.00070999,120]
[358310680,1744921854608,-313.2493955,0.00070999,120]
[358310681,1744921854617,-500.0,0.00070999,120]
[358310682,1744921854626,-500.0,0.00070999,120]
[358310683,1744921854636,-341.65036956,0.00070999,120]
[358310684,1744921854645,-500.0,0.00070999,120]
[358310685,1744921854655,-500.0,0.00070999,120]
[358310686,1744921854664,-500.0,0.00070999,120]
[358310687,1744921854674,-500.0,0.00070999,120]
[358310688,1744921854683,-500.0,0.00070999,120]
[358310689,1744921854692,-500.0,0.00070999,120]
[358310690,1744921854702,-586.65839313,0.00070999,120]
[358310691,1744921854711,-500.0,0.00070999,15]
[358310692,1744921854721,-500.0,0.00070999,120]
[358310693,1744921854730,-500.0,0.00070999,120]
[358310694,1744921854739,-500.0,0.00070999,120]
[358310695,1744921854749,-500.0,0.00070999,120]
[358310696,1744921854758,-500.0,0.00070999,120]
[358310697,1744921854767,-500.0,0.00070999,120]
[358310698,1744921854777,-219.24,0.00070999,120]
[358310699,1744921854785,-500.0,0.00070999,120]
[358310700,1744921854794,-500.0,0.00070999,120]
[358310701,1744921854804,-500.0,0.00070999,120]
[358310702,1744921854814,-500.0,0.00070999,120]
[358310703,1744921854824,-500.0,0.00070999,120]
[358310704,1744921854833,-500.0,0.00070999,120]
[358310705,1744921854842,-500.0,0.00070999,120]
[358310706,1744921854852,-500.0,0.00070999,120]
[358310707,1744921854861,-506.97415162,0.00070999,120]
[358310708,1744921854871,-500.0,0.00070999,120]
[358310709,1744921854881,-500.0,0.00070999,120]
[358310710,1744921854890,-500.0,0.00070999,120]
[358310711,1744921854899,-500.0,0.00070999,120]
[358310712,1744921854909,-500.0,0.00070999,120]
[358310713,1744921854918,-500.0,0.00070999,120]
[358310714,1744921854927,-500.0,0.00070999,120]
[358310715,1744921854936,-298.49501163,0.00070999,120]
[358310716,1744921854946,-500.0,0.00070999,120]
[358310717,1744921854955,-532.45076638,0.00070999,120]
[358310718,1744921854964,-500.0,0.00070999,120]
[358310719,1744921854974,-500.0,0.00070999,120]
[358310720,1744921854983,-500.0,0.00070999,120]
[358310721,1744921854992,-500.0,0.00070999,120]
[358310722,1744921855002,-500.0,0.00070999,120]
[358310723,1744921855011,-500.0,0.00070999,120]
[358310724,1744921855020,-500.0,0.00070999,120]
[358310725,1744921855030,-500.0,0.00070999,120]
[358310726,1744921855039,-500.0,0.00070999,120]
[358310727,1744921855048,-500.0,0.00070999,120]
[358310728,1744921855058,-500.0,0.00070999,120]
[358310729,1744921855068,-500.0,0.00070999,120]
[358310730,1744921855077,-500.0,0.00070999,120]
[358310731,1744921855086,-151.0,0.00070999,120]
[358310732,1744921855095,-500.0,0.00070999,120]
[358310733,1744921855104,-500.0,0.00070999,120]
[358310734,1744921855113,-500.0,0.00070999,120]
[358310735,1744921855123,-500.0,0.00070999,120]
[358310736,1744921855132,-522.00552527,0.00070999,120]
[358310737,1744921855141,-500.0,0.00070999,120]
[358310738,1744921855151,-500.0,0.00070999,120]
[358310739,1744921855161,-500.0,0.00070999,120]
[358310740,1744921855170,-500.0,0.00070999,120]
[358310741,1744921855180,-509.62954382,0.00070999,120]
[358310742,1744921855189,-514.38896866,0.00070999,120]
[358310743,1744921855199,-500.0,0.00070999,120]
[358310744,1744921855208,-500.0,0.00070999,120]
[358310745,1744921855218,-500.0,0.00070999,120]
[358310746,1744921855227,-500.0,0.00070999,2]
[358310747,1744921855236,-500.0,0.00070999,2]
[358310748,1744921855245,-500.0,0.00070999,120]
[358310749,1744921855255,-500.0,0.00070999,120]
[358310750,1744921855264,-500.0,0.00070999,120]
[358310751,1744921855273,-500.0,0.00070999,120]
[358310752,1744921855283,-500.0,0.00070999,120]
[358310753,1744921855293,-500.0,0.00070999,120]
[358310754,1744921855302,-500.0,0.00070999,120]
[358310755,1744921855312,-500.0,0.00070999,120]
[358310756,1744921855322,-500.0,0.00070999,120]
[358310757,1744921855409,-500.0,0.00070999,120]
[358310758,1744921855419,-548.9525522,0.00070999,120]
[358310759,1744921855428,-500.0,0.00070999,120]
[358310760,1744921855439,-500.0,0.00070999,120]
[358310761,1744921855449,-500.0,0.00070999,120]
[358310762,1744921855458,-498.82988015,0.00070999,120]
[358310763,1744921855467,-500.0,0.00070999,120]
[358310764,1744921855475,-500.0,0.00070999,120]
[358310765,1744921855485,-500.0,0.00070999,120]
[358310766,1744921855494,-184.07,0.00070999,120]
[358310767,1744921855503,-500.0,0.00070999,120]
[358310768,1744921855512,-573.68099509,0.00070999,120]
[358310769,1744921855521,-506.05853935,0.00070999,120]
[358310770,1744921855531,-500.0,0.00070999,120]
[358310771,1744921855540,-500.0,0.00070999,120]
[358310772,1744921855549,-477.19,0.00070999,120]
[358310773,1744921855558,-500.0,0.00070999,120]
[358310774,1744921855567,-548.78,0.00070999,120]
[358310775,1744921855577,-548.78,0.00070999,120]
[358310776,1744921855586,-594.08,0.00070999,120]
[358310777,1744921855595,-500.0,0.00070999,120]
[358310778,1744921855604,-517.78,0.00070999,120]
[358310779,1744921855613,-500.0,0.00070999,120]
[358310780,1744921855623,-500.0,0.00070999,120]
[358310781,1744921855632,-500.0,0.00070999,120]
[358310782,1744921855641,-500.0,0.00070999,120]
[358310783,1744921855650,-500.0,0.00070999,120]
[358310784,1744921855660,-500.0,0.00070999,120]
[358310785,1744921855669,-632.56903775,0.00070999,120]
[358310786,1744921855678,-500.0,0.00070999,120]
[358310787,1744921855687,-500.0,0.00070999,120]
[358310788,1744921855696,-517.11623414,0.00070999,120]
[358310789,1744921855706,-500.0,0.00070999,120]
[358310790,1744921855716,-500.0,0.00070999,120]
[358310791,1744921855727,-500.0,0.00070999,120]
[358310792,1744921855736,-500.0,0.00070999,120]
[358310793,1744921855746,-500.0,0.00070999,120]
[358310794,1744921855755,-500.0,0.00070999,120]
[358310795,1744921855764,-500.0,0.00070999,120]
[358310796,1744921855774,-500.0,0.00070999,120]
[358310797,1744921855783,-500.0,0.00070999,120]
[358310798,1744921855793,-500.0,0.00070999,120]
[358310799,1744921855802,-500.0,0.00070999,120]
[358310800,1744921855811,-500.0,0.00070999,120]
[358310801,1744921855820,-23.88527945,0.00070999,120]
[358310802,1744921855834,-476.11472055,0.00070999,120]
[358310803,1744921855843,-639.51,0.00070999,120]
[358310804,1744921855852,-146.33027945,0.00070999,120]
[358310805,1744921855863,-353.66972055,0.00070999,120]
[358310806,1744921855873,-339.53027949,0.00070999,120]
[358310807,1744921855896,-500.0,0.00069998,120]
[358310808,1744921855906,-151.0,0.00069999,120]
[358310809,1744921855915,-160.46972051,0.00070999,120]
[358310810,1744921855925,-500.0,0.00070999,120]
[358310811,1744921855935,-500.0,0.00070999,120]
[358310812,1744921855944,-500.0,0.00070999,120]
[358310813,1744921855954,-500.0,0.00070999,120]
[358310814,1744921855964,-499.37691297,0.00070999,120]
[358310815,1744921855973,-500.0,0.00070999,120]
[358310816,1744921855983,-151.0,0.00070999,120]
[358310817,1744921855992,-500.0,0.00070999,120]
[358310818,1744921856001,-500.0,0.00070999,120]
[358310819,1744921856010,-185.36748913,0.00070999,120]
[358310820,1744921856020,-501.07181125,0.00070999,120]
[358310821,1744921856029,-500.0,0.00070999,120]
[358310822,1744921856038,-151.0,0.00070999,120]
[358310823,1744921856048,-555.94087239,0.00070999,120]
[358310824,1744921856057,-500.0,0.00070999,90]
[358310825,1744921856067,-500.0,0.00070999,90]
[358310826,1744921856077,-500.0,0.00070999,120]
[358310827,1744921856086,-269.36,0.00070999,120]
[358310828,1744921856096,-500.0,0.00070999,120]
[358310829,1744921856106,-642.21070247,0.00070999,120]
[358310830,1744921856115,-151.0,0.00070999,120]
[358310831,1744921856126,-500.0,0.00070999,16]
[358310832,1744921856135,-500.0,0.00070999,120]
[358310833,1744921856144,-467.85195481,0.00070999,120]
[358310834,1744921856156,-32.14804519,0.00070999,120]
[358310835,1744921856166,-500.0,0.00070999,120]
[358310836,1744921856176,-377.3547038,0.00070999,120]
[358310837,1744921856186,-215.14258,0.00070999,120]
[358310838,1744921856195,-215.14258,0.00070999,120]
[358310839,1744921856205,-500.0,0.00070999,120]
[358310840,1744921856214,-500.0,0.00070999,120]
[358310841,1744921856223,-500.0,0.00070999,120]
[358310842,1744921856232,-500.0,0.00070999,120]
[358310843,1744921856242,-151.0,0.00070999,120]
[358310844,1744921856251,-151.0,0.00070999,120]
[358310845,1744921856261,-151.0,0.00070999,120]
[358310846,1744921856271,-151.0,0.00070999,120]
[358310847,1744921856280,-624.3,0.00070999,118]
[358310848,1744921856290,-151.0,0.00070999,120]
[358310849,1744921856300,-151.0,0.00070999,120]
[358310850,1744921856310,-151.0,0.00070999,120]
[358310851,1744921856320,-151.0,0.00070999,120]
[358310852,1744921856329,-500.0,0.00070999,120]
[358310853,1744921856338,-500.0,0.00070999,120]
[358310854,1744921856348,-500.0,0.00070999,120]
[358310855,1744921856360,-500.0,0.00070999,120]
[358310856,1744921856369,-500.0,0.00070999,120]
[358310857,1744921856378,-2946.24,0.00070999,120]
[358310858,1744921856387,-278.187801,0.00070999,120]
[358310859,1744921856397,-500.0,0.00070999,14]
[358310860,1744921856407,-500.0,0.00070999,120]
[358310861,1744921856415,-500.0,0.00070999,120]
[358310862,1744921856424,-500.0,0.00070999,120]
[358310863,1744921856436,-500.0,0.00070999,120]
[358310864,1744921856445,-500.0,0.00070999,120]
[358310865,1744921856454,-486.3074,0.00070999,120]
[358310866,1744921856463,-675.16,0.00070999,120]
[358310867,1744921856473,-151.0,0.00070999,120]
[358310868,1744921856482,-151.0,0.00070999,120]
[358310869,1744921856491,-553.33548152,0.00070999,120]
[358310870,1744921856500,-599.28060879,0.00070999,120]
[358310871,1744921856510,-495.83079731,0.00070999,120]
[358310872,1744921856519,-500.0,0.00070999,120]
[358310873,1744921856528,-362.52,0.00070999,120]
[358310874,1744921856537,-151.0,0.00070999,120]
[358310875,1744921856547,-661.82,0.00070999,120]
[358310876,1744921856556,-151.0,0.00070999,120]
[358310877,1744921856565,-500.0,0.00070999,120]
[358310878,1744921856575,-500.0,0.00070999,120]
[358310879,1744921856584,-500.0,0.00070999,120]
[358310880,1744921856594,-151.0,0.00070999,120]
[358310881,1744921856603,-444.8279231,0.00070999,120]
[358310882,1744921856612,-500.0,0.00070999,120]
[358310883,1744921856622,-500.0,0.00070999,120]
[358310884,1744921856631,-500.0,0.00070999,120]
[358310885,1744921856640,-50000.0,0.00071,71]
[358310886,1744921856651,-24597.00000007,0.00071,7]
[358310887,1744921856661,-151.0,0.00071,120]
[358310888,1744921856671,-151.0,0.00071,120]
[358310889,1744921856680,-151.0,0.00071,120]
[358310890,1744921856690,-151.0,0.00071,120]
[358310891,1744921856699,-151.0,0.00071,120]
[358310892,1744921856709,-181.742684,0.00071,120]
[358310893,1744921856718,-151.0,0.00071,120]
[358310894,1744921856728,-215.14258,0.00071,120]
[358310895,1744921856737,-215.14258,0.00071,120]
[358310896,1744921856747,-151.0,0.00071,120]
[358310897,1744921856757,-151.0,0.00071,120]
[358310898,1744921856767,-500.0,0.00071008,120]
[358310899,1744921856776,-500.0,0.00071008,120]
[358310900,1744921856786,-500.0,0.00071008,120]
[358310901,1744921856796,-203.0,0.0007113,120]
[358310902,1744921856805,-673.34,0.00071663,2]
[358310903,1744921856815,-320.82,0.00071781,30]
[358310904,1744921856824,-1000.0,0.00071872,90]
[358310905,1744921856833,-3602.0,0.00071989,60]
[358310906,1744921856843,-240.65592388,0.00071989,120]
[358310907,1744921856853,-500.0,0.00071989,120]
[358310908,1744921856863,-500.0,0.00071989,120]
[358310909,1744921856872,-500.0,0.00071989,120]
[358310910,1744921856881,-500.0,0.00071989,120]
[358310911,1744921856891,-500.0,0.00071989,120]
[358310912,1744921856900,-500.0,0.00071989,120]
[358310913,1744921856910,-500.0,0.00071989,120]
[358310914,1744921856919,-500.0,0.00071989,120]
[358310915,1744921856928,-500.0,0.00071989,120]
[358310916,1744921856938,-500.0,0.00071989,120]
[358310917,1744921857023,-500.0,0.00071989,120]
[358310918,1744921857034,-500.0,0.00071989,120]
[358310919,1744921857044,-500.0,0.00071989,120]
[358310920,1744921857054,-586.04063651,0.00071989,120]
[358310921,1744921857064,-568.34,0.00071989,120]
[358310922,1744921857074,-500.0,0.00071989,120]
[358310923,1744921857086,-500.0,0.00071989,120]
[358310924,1744921857096,-500.0,0.00071989,120]
[358310925,1744921857106,-500.0,0.00071989,120]
[358310926,1744921857116,-500.0,0.00071989,120]
[358310927,1744921857126,-500.0,0.00071989,120]
[358310928,1744921857135,-500.0,0.00071989,120]
[358310929,1744921857144,-500.0,0.00071989,120]
[358310930,1744921857154,-500.0,0.00071989,120]
[358310931,1744921857163,-500.0,0.00071989,120]
[358310932,1744921857173,-500.0,0.00071989,120]
[358310933,1744921857182,-500.0,0.00071989,30]
[358310934,1744921857191,-500.0,0.00071989,120]
[358310935,1744921857201,-500.0,0.00071989,120]
[358310936,1744921857212,-500.0,0.00071989,120]
[358310937,1744921857221,-151.0,0.0007199,120]
[358310938,1744921857231,-151.0,0.0007199,120]
[358310939,1744921857240,-151.0,0.0007199,120]
[358310940,1744921857250,-151.0,0.0007199,120]
[358310941,1744921857259,-216.89242,0.0007199,120]
[358310942,1744921857268,-500.0,0.00071998,2]
[358310943,1744921857278,-500.0,0.00071998,120]
[358310944,1744921857287,-783.84,0.00071998,120]
[358310945,1744921857296,-655.03,0.00071998,2]
[358310946,1744921857306,-1131.18,0.00071998,120]
[358310947,1744921857315,-300.0,0.00071999,60]
[358310948,1744921857325,-500.0,0.00071999,90]
[358310949,1744921857334,-500.0,0.00071999,90]
[358310950,1744921857344,-500.0,0.00071999,90]
[358310951,1744921857354,-500.0,0.00071999,90]
[358310952,1744921857365,-300.0,0.00071999,60]
[358310953,1744921857375,-500.0,0.00071999,90]
[358310954,1744921857384,-300.0,0.00071999,60]
[358310955,1744921857393,-215.12,0.00071999,120]
[358310956,1744921857403,-500.0,0.00071999,120]
[358310957,1744921857412,-500.0,0.00071999,120]
[358310958,1744921857421,-500.0,0.00071999,120]
[358310959,1744921857431,-500.0,0.00071999,120]
[358310960,1744921857440,-361.03157527,0.00071999,120]
[358310961,1744921857454,-138.96842473,0.00071999,120]
[358310962,1744921857463,-500.0,0.00071999,120]
[358310963,1744921857472,-3468.02661604,0.00071999,7]
[358310965,1744922816213,-150.0,0.00034548,10]
[358310966,1744922816234,-362.94336469,0.00044788,2]
[358310967,1744922832107,-151.0,0.00039977,2]
[358310968,1744922832134,-151.0,0.00039977,2]
[358310969,1744922832162,-840.90794283,0.00044788,2]
[358310970,1744922843100,-915.98803462,0.00044788,2]
[358310971,1744922843131,-487.22237224,0.00045489,2]
[358310972,1744922843158,-150.0,0.00045589,10]
[358310973,1744922843186,-9255.89151517,0.00051,120]
[358310974,1744922849088,-1272.54179228,0.00051,120]
[358310975,1744922851100,-16142.78857832,0.00051,120]
[358310976,1744922853089,-1170.58868549,0.0005,120]
[358310984,1744923032248,-418.65078535,0.0005,120]
[358310985,1744923032258,-153.5,0.000547,54]
[358310986,1744923032267,-153.5,0.000547,54]
[358310987,1744923032276,-174.34921465,0.000549,2]
[358310988,1744923032287,-224.52894433,0.000549,2]
[358310989,1744923032297,-188.92275908,0.000549,2]
[358310990,1744923032307,-6180.46971892,0.00055,120]
[358310991,1744923032319,-872.32,0.00055,120]
[358310992,1744923032413,-252.47215573,0.00055,120]
[358310993,1744923032423,-1776.5946,0.00055,120]
[358310994,1744923032469,-8837.3766183,0.00055,120]
[358310995,1744923032524,-2075.33855664,0.00055,120]
[358310996,1744923032533,-546.70831491,0.00055,120]
[358310997,1744923032581,-6377.79265015,0.00055,120]
[358310998,1744923032590,-350.0,0.00055,111]
[358310999,1744923032599,-350.0,0.00055,111]
[358311000,1744923032609,-4046.86879321,0.00056901,2]
[358311043,1744923038422,-383.3074704,0.00056901,2]
[358311044,1744923038432,-1000.0,0.00057999,120]
[358311045,1744923038442,-150.0,0.00057999,120]
[358311046,1744923038452,-150.0,0.00059369,120]
[358311047,1744923038461,-720.47957079,0.00060368,2]
[358311048,1744923038477,-24381.55106111,0.00060368,2]
[358311049,1744923038486,-150.0,0.00061781,2]
[358311050,1744923038495,-173.06502632,0.000619,30]
[358311051,1744923038505,-6542.80942798,0.000619,120]
[358311052,1744923038516,-716.41985557,0.000619,120]
[358311053,1744923038525,-1000.0,0.00061905,120]
[358311054,1744923038534,-2000.0,0.00062252,120]
[358311055,1744923038544,-2519.08544243,0.00062562,2]
[358311056,1744923038555,-403.3,0.00062562,2]
[358311057,1744923039168,-2004.37249428,0.00062562,2]
[358311058,1744923039178,-529.92,0.00062607,2]
[358311059,1744923039187,-250.0,0.00063515,120]
[358311060,1744923039196,-170.01,0.00064258,2]
[358311061,1744923039206,-155.2,0.0006443,120]
[358311062,1744923039216,-2318.05,0.00064484,2]
[358311063,1744923039225,-200.0,0.00064525,30]
[358311064,1744923039234,-150.0,0.00064525,30]
[358311065,1744923039244,-200.0,0.00064525,2]
[358311066,1744923039253,-23900.0,0.00064525,2]
[358311067,1744923039262,-4363.47,0.00064525,2]